Cogmind - Beta 17 @@@ ROGUE MODE // 2026.07.12 @ 11:07:02 Player: Andru7428 Result: Destroyed by D-53 Grenadier with Mini Grenade Launcher Performance ------------- Evolutions (0) 0 Regions Visited (2) 400 Robots Destroyed (29) 145 Value Destroyed (451) 451 Prototype IDs (0) 0 Alien Tech Used (0) 0 Bonus (0) 0 TOTAL SCORE: 996 Bonus ------- None Cogmind --------- Core Integrity 0/250 Matter 246/300 Energy 100/100 System Corruption 0% Temperature Cool (0) Movement Core (350) Ox6 Location -10/Mines Parts ------- > --- POWER (1) -------- (None) > --- PROPULSION (2) --- (None) > --- UTILITY (2) ------ Large Storage Unit > --- WEAPON (2) ------- (None) > --- INVENTORY (15) --- Light Ion Engine Heat Sink Large Matter Pod (150) Structural Scanner ECM Suite Hacking Suite Medium Laser Small Laser Light Assault Rifle Grenade Launcher Grenade Launcher Flail Peak State ------------ > --- POWER ------------ Ion Engine > --- PROPULSION ------- Light Treads Light Treads > --- UTILITY ---------- Heat Sink Large Storage Unit > --- WEAPON ----------- Light Cannon Flail > --- INVENTORY -------- Light Ion Engine Light Treads Light Treads Large Matter Pod Seismic Detector ECM Suite Hacking Suite Medium Laser Assault Rifle Light Assault Rifle Light Cannon Grenade Launcher Grenade Launcher [Rating: 9] Favorites ----------- Power Ion Engine Engine Ion Engine Propulsion Light Treads Treads Light Treads Utility Heat Sink Device Heat Sink Storage Large Storage Unit Weapon Light Cannon Energy Gun Medium Laser Ballistic Gun Light Assault Rifle Ballistic Cannon Light Cannon Launcher Grenade Launcher Impact Weapon Flail Build | -11 -10 -10 ------- Run | Yrd Mat Min Slots Evolved . | . . . Power . | . . . Propulsion . | . . . Utility . | . . . Weapon . | . . . Parts Attached 18 | 7 7 4 Power 2 | 1 1 . Engine 2 | 1 1 . Core . | . . . Reactor . | . . . Propulsion 4 | 2 . 2 Treads 4 | 2 . 2 Leg . | . . . Wheel . | . . . Hover . | . . . Flight . | . . . Utility 5 | 2 3 . Device 2 | 1 1 . Storage 3 | 1 2 . Processor . | . . . Hackware . | . . . Protection . | . . . Artifact . | . . . Weapon 7 | 2 3 2 Energy Gun 1 | 1 . . Energy Cannon . | . . . Ballistic Gun 2 | 1 . 1 Ballistic Cannon 2 | . 2 . Launcher 1 | . . 1 Special Weapon . | . . . Impact Weapon 1 | . 1 . Slashing Weapon . | . . . Piercing Weapon . | . . . Special Melee Weapon . | . . . Unidentified Prototypes . | . . . Parts Lost 9 | . . 9 Power 1 | . . 1 Propulsion 4 | . . 4 Utility 1 | . . 1 Weapon 3 | . . 3 Highest Loss Streak 9 | . . 9 To Critical Strikes . | . . . Average Backups 10 | 5 10 14 Power 1 | 1 1 1 Propulsion 2 | 2 2 1 Utility 2 | . 2 5 Weapon 4 | 1 4 6 Tool/Special . | . . . Unused Backups 14 | . 6 8 Power 1 | . . 1 Propulsion 4 | . 4 . Utility 5 | . 1 4 Weapon 4 | . 1 3 Tool/Special . | . . . Average Slot Usage (%) 98 | . 98 98 Engine 14 | . 14 14 Treads 27 | . 28 27 Device 13 | . 12 14 Storage 14 | . 14 14 Energy Gun 4 | . 5 . Ballistic Gun 4 | . 5 . Ballistic Cannon 17 | . 14 26 Impact Weapon 2 | . 2 . Peak Build Rating 9 | 7 9 9 Average Rating 7 | 4 7 7 On Entrance 5 | . 7 9 Avg Prop Armor Cover (%) . | . . . Naked Turns . | . . . Heaviest Build 32 | 12 32 32 Greatest Support 40 | 40 40 40 Greatest Overweight (x) 1 | 1 . 1 Average Overweight (x) . | . . . Largest Inventory Capacity 15 | 8 15 15 Average Capacity 11 | 7 11 15 Most Carried 15 | 8 14 15 Average Carried 10 | 5 10 14 Final Capacity 15 | 8 15 15 Final Carried 14 | 6 14 12 Class Distribution -------------------- 100% | Mutant Dominant Class ---------------- Mutant | -10/Materials Mutant | -10/Mines Resources | -11 -10 -10 ----------- Run | Yrd Mat Min Matter Collected 796 | 273 455 68 Remotely . | . . . Salvage Created 687 | 18 543 126 Parts 53 | 7 38 8 Haulers Intercepted 2 | . 2 . Recyclers Shooed 4 | 1 3 . Parts Field Recycled . | . . . Retrieved Matter . | . . . Parts Self-Destructed . | . . . Prevented . | . . . Parts Restored . | . . . Kills | -11 -10 -10 ------- Run | Yrd Mat Min Combat Hostiles Destroyed 23 | . 14 9 Guns 8 | . 8 . Cannons 7 | . 5 2 AOE 7 | . . 7 Classes Destroyed 9 | 2 6 1 Worker 2 | 1 1 . Builder 1 | . 1 . Tunneler 2 | 1 1 . Hauler 2 | . 2 . Recycler 1 | . 1 . Operator 1 | . 1 . Swarmer 12 | . 9 3 Grunt 8 | . 5 3 Assembled 4 | . . 4 Best Kill Streak 5 | 1 4 5 Combat Bots Only 5 | . 3 5 Max Kills in Single Turn 3 | 1 1 3 Gunslinging . | . . . Exploded 3 | . . 3 Melee . | . . . Uniques/NPCs Destroyed . | . . . Combat | -11 -10 -10 -------- Run | Yrd Mat Min Hostile Shots Fired 100 | . 55 45 Missed 22 | . 14 8 Hits 78 | . 41 37 Projectile 78 | . 41 37 AOE 19 | . . 19 Part Disruptions 1 | . . 1 Damage Taken 1410 | . 384 1026 Core 260 | . 59 201 Absorbed by Shields . | . . . Core Remaining (%) 100 | 100 . . Volleys Fired 69 | 5 54 10 Largest 2 | 2 2 2 Hottest 70 | 70 70 60 Shots Fired 134 | 10 108 16 Gun 83 | 10 72 1 Cannon 47 | . 36 11 Launcher 4 | . . 4 Special . | . . . Kinetic 89 | 5 72 12 Thermal 41 | 5 36 . Explosive 4 | . . 4 Electromagnetic . | . . . Robot Hit Streak 17 | 9 17 4 Robot Miss Streak 4 | . 4 2 Penetration Max . | . . . Secondary Targets 1 | . 1 . Max Gunslinging Chain 1 | . 1 . Shots Hit Robots 80 | 9 64 7 Core Hits 51 | 2 30 19 Critical Kills . | . . . Critical Parts Destroyed 1 | . 1 . Critical Strikes 4 | 1 3 . Burn 3 | 1 2 . Destroy 1 | . 1 . Melee Attacks 5 | . 5 . Impact 5 | . 5 . Slashing . | . . . Piercing . | . . . Sneak Attacks 3 | . 3 . Combat Hostiles . | . . . Follow-up Attacks . | . . . Damage Inflicted 1555 | 97 905 553 Guns 551 | 95 456 . Cannons 445 | . 283 162 Explosions 383 | . . 383 Melee 160 | . 160 . Ramming 16 | 2 6 8 Kinetic 647 | 31 454 162 Thermal 349 | 64 285 . Explosive 383 | . . 383 Electromagnetic . | . . . Impact 160 | . 160 . Slashing . | . . . Piercing . | . . . Highest Corruption . | . . . Average Corruption . | . . . Corruption Purged . | . . . Corruption Blocked . | . . . Overload Shots . | . . . Overflow Damage 9 | . 4 5 Projectiles . | . . . Explosions 5 | . . 5 Melee 4 | . 4 . Knockbacks 7 | . 4 3 Impact 1 | . 1 . Kinetic 6 | . 3 3 Secondary . | . . . Self-Inflicted Damage 31 | . . 31 Shots 1 | . . 1 Rammed 3 | . 2 1 Targets Rammed 4 | 1 2 1 Kicked . | . . . Crushed 1 | 1 . . Highest Temperature 150 | 60 150 10 Average Temperature 47 | 28 51 5 Received Heat Transfer 146 | . 87 59 Siege Activations . | . . . Martial Activations . | . . . Shielding Activations . | . . . Robots Disrupted . | . . . Combat Hostiles . | . . . Robots Corrupted 1 | . 1 . Combat Hostiles . | . . . Parts Fried 2 | . 2 . Impact Corruptions 1 | . 1 . Robots Melted 1 | . 1 . Combat Hostiles 1 | . 1 . Parts Melted 3 | . 3 . Heat Transferred 1258 | 259 999 . Parts Sabotaged . | . . . Parts Stolen . | . . . Parts Stripped . | . . . Power Chain Reactions . | . . . Alert | -11 -10 -10 ------- Run | Yrd Mat Min Maximum Alert Level . | . . . Low Security (%) 100 | 100 100 100 Level 1 . | . . . Level 2 . | . . . Level 3 . | . . . Level 4 . | . . . Level 5 . | . . . High Security . | . . . Max Security . | . . . Peak Influence 140 | 5 116 140 Initial 3 | . 3 . Average 36 | . 36 45 Influence Increases 606 | 10 448 148 Destroy 0b10 Robot/C 380 | . 280 100 Destroy 0b10 Robot/NC 45 | 10 35 . Destroy Leader 84 | . 64 20 Successful Hack 22 | . 22 . Disable Machine 30 | . 30 . Destroy Structure 30 | . 2 28 Lose Combat Pursuer 15 | . 15 . Influence Decreases 606 | 5 453 148 Entered New Map 2 | . 2 . Time Decay 553 | 5 408 140 Lost Ally 8 | . . 8 Purge Threat 43 | . 43 . Squads Dispatched 2 | . 2 . Investigation . | . . . Extermination . | . . . Reinforcement 2 | . 2 . Assault . | . . . Garrison . | . . . Intercept . | . . . Searches Triggered . | . . . Construction Impeded . | . . . Haulers Reinforced . | . . . Active Scanning Responses . | . . . Cargo Convoy Interrupts . | . . . Stealth | -11 -10 -10 --------- Run | Yrd Mat Min Distress Signals 1 | . 1 . Communications Jammed . | . . . Distress Signals . | . . . Times Spotted 54 | . 28 26 Peak Tracking Total 14 | . 5 14 Tactical Retreats 1 | . 1 . Traps | -11 -10 -10 ------- Run | Yrd Mat Min Traps Triggered . | . . . Indirectly . | . . . Trap Hack Attempts . | . . . Triggered . | . . . Disarmed . | . . . Reprogrammed . | . . . Reused . | . . . Traps Extracted . | . . . Installed . | . . . Triggered . | . . . Machines | -11 -10 -10 ---------- Run | Yrd Mat Min Machines Disabled 3 | . 3 . Max in Single Turn 1 | . 1 . Machines Repaired . | . . . Machines Dismantled . | . . . Machines Sabotaged . | . . . Overloaded Fab Kills . | . . . Hacking | -11 -10 -10 --------- Run | Yrd Mat Min Machines Accessed 7 | . 7 . Terminals 7 | . 7 . Fabricators . | . . . Repair Stations . | . . . Recycling Units . | . . . Scanalyzers . | . . . Garrison Access . | . . . Total Hacks 17 | . 17 . Successful 13 | . 13 . Failed 4 | . 4 . Catastrophic 1 | . 1 . Database Lockouts . | . . . Manual 12 | . 12 . Terminals 17 | . 17 . Fabricators . | . . . Repair Stations . | . . . Recycling Units . | . . . Scanalyzers . | . . . Garrison Access . | . . . Terminal Hacks 4 | . 4 . Record 1 | . 1 . Robot Analysis 1 | . 1 . Unreport Threat 1 | . 1 . Locate Traps 1 | . 1 . Fabricator Hacks . | . . . Repair Station Hacks . | . . . Recycling Unit Hacks . | . . . Scanalyzer . | . . . Garrison Access Hacks . | . . . Unauthorized Hacks 9 | . 9 . Terminals 9 | . 9 . Botnet 3 | . 3 . Skim 6 | . 6 . Fabricators . | . . . Repair Stations . | . . . Recycling Units . | . . . Scanalyzers . | . . . Garrison Access . | . . . Data Cores Recovered 1 | . 1 . Used . | . . . Hacking Detections 7 | . 7 . Full Trace Events . | . . . Feedback Events . | . . . Feedback Blocked . | . . . Robot Schematics Acquired . | . . . Robots Built . | . . . Authchips . | . . . Time . | . . . Total Robot Build Rating . | . . . Part Schematics Acquired . | . . . Parts Built . | . . . Authchips . | . . . Time . | . . . Total Part Build Rating . | . . . Part Studies Acquired . | . . . Parts Repaired . | . . . Time . | . . . Parts Recycled . | . . . Recycled Matter . | . . . Retrieved Matter . | . . . Retrieved Components . | . . . Parts Scanalyzed . | . . . Part Schematics Acquired . | . . . Parts Damaged . | . . . Bothacking | -11 -10 -10 ------------ Run | Yrd Mat Min Used RIF Installer . | . . . Robots Hacked . | . . . Non-combat . | . . . Combat . | . . . Robot Hacks Applied . | . . . Relay Couplers Released . | . . . Fabnet Peak Effective % . | . . . Robots Rewired . | . . . Allies Hacked . | . . . Hacks Repelled . | . . . Allies | -11 -10 -10 -------- Run | Yrd Mat Min Total Allies 6 | . . 6 Largest Group 6 | . . 6 Highest-Rated Group 124 | . . 124 Highest-Rated Ally 31 | . . 31 Total Orders . | . . . Ally Attacks 13 | . . 13 Total Damage 169 | . . 169 Kills 2 | . . 2 Allies Corrupted . | . . . Allies Melted . | . . . Intel | -11 -10 -10 ------- Run | Yrd Mat Min Active Infowar (turns) 898 | 40 409 449 Seismic 898 | 40 409 449 Robot Analysis Total 1 | . 1 . Derelict Logs Recovered . | . . . Drone Launches . | . . . Drone Recoveries . | . . . Exploration | -11 -10 -10 ------------- Run | Yrd Mat Min Turns Passed 2209 | 100 1660 449 Spaces Moved 1079 | 45 780 254 Core 6 | 6 . . Treads 1073 | 39 780 254 Legs . | . . . Wheels . | . . . Hover . | . . . Flight . | . . . Fastest Speed 50 | 50 160 160 Average Speed 159 | 148 160 160 Slowest Speed 240 | 160 160 240 Overloaded Moves . | . . . Propulsion Burnouts . | . . . Robots Hopped . | . . . Potential Cave-ins . | . . . Cave-ins Triggered . | . . . Exploration Rate (%) 54 | 3 97 64 Regions Visited 2 Branch Regions 1 Pre-discovered Areas 2 | . 2 . Known Exits Taken . | . . . Unknown Exits Taken 2 | 1 1 . Scrap Searched 1 | . . 1 Spaces Dug 1 | . 1 . Terrain Destroyed 37 | . 1 36 Melee 1 | . 1 . Projectile . | . . . AOE 36 | . . 36 Terrain Rammed . | . . . Walls Destroyed . | . . . Machines Disabled . | . . . Actions | -11 -10 -10 --------- Run | Yrd Mat Min Total 1430 | 67 1086 277 Wait 216 | . 213 3 Move 1078 | 45 779 254 Hop . | . . . Pick Up 25 | 10 14 1 Fast Attach 4 | 3 1 . Attach 7 | 4 . 3 Detach 1 | . 1 . Swap 12 | . 7 5 Drop 10 | . 10 . Fire 69 | 5 54 10 Melee 5 | . 5 . Ram . | . . . Kick . | . . . Crush 3 | . 2 1 Escape Stasis . | . . . Rewire . | . . . Trap . | . . . Miscellaneous . | . . . Route ------- -11/Scrapyard -10/Materials (discovered 5 exits: *Mat x3 / [*Min] / Sub) -10/Mines (discovered 2 exits: Mat x2) History --------- Turn | Location | Event 30 | -11/Scrapyard | Discovered new exit (range 16) 101 | -11/Scrapyard | Entered Materials 317 | -10/Materials | Build established: Mutant 557 | -10/Materials | Discovered new exit (range 4) 723 | -10/Materials | Discovered new exit (range 4) 756 | -10/Materials | Discovered new exit (range 16) 1232 | -10/Materials | Discovered new exit (range 11) 1473 | -10/Materials | Learned 2 Storage zone layouts 1535 | -10/Materials | Learned location of Mines (-9) 1587 | -10/Materials | Learned Storage stockpile data 1629 | -10/Materials | Identified exit to Subcaves 1629 | -10/Materials | Identified exit to Materials 1659 | -10/Materials | Loaded intel: 11 interactive machine locations 1761 | -10/Materials | Entered Mines 1925 | -10/Mines | Received a Mining Laser from a helpful Derelict 2026 | -10/Mines | Assisted by bots powering up and referring to "LRC-V3" 2169 | -10/Mines | Assembled infested the area 2174 | -10/Mines | Assisted by a Guerilla fighting off Assembled 2204 | -10/Mines | Core integrity fell below 50% 2209 | -10/Mines | Core integrity fell below 20% 2210 | -10/Mines | Destroyed by D-53 Grenadier with Mini Grenade Launcher Last Messages --------------- 02193_ HV Slug penetrates Wall. 02194_ C6-RFE(h) destroyed. 02194_ as-08116 destroyed. 02194_ as-53489 destroyed. 02194_ J8-MVW(g) destroyed. 02195_ The unstable cave ceiling collapses. 02196_ D-53 Grenadier knocked back. 02197_ Lgt. Cannon destroyed. 02198_ as-68207 destroyed. 02201_ The unstable cave ceiling collapses. 02202_ Lgt. Treads destroyed. 02203_ Lgt. Cannon destroyed. 02204_ The unstable cave ceiling collapses. 02204_ Lgt. Treads destroyed. 02205_ as-50372 destroyed. 02206_ The unstable cave ceiling collapses. 02208_ Lgt. Treads destroyed. 02208_ Assault Rifle destroyed. 02210_ Ion Engine destroyed. 02210_ Seismic Detector destroyed. Map ----- +----------------------------------------------------+ | | | | | | | | | | | | | | | | | | | | | | | | | | | | | | | | | | | | | ?????????????????????????????????????????????????? | | ?????????????????????###?????#####??????####?????? | | ????????????????????## ###### ######## ####??? | | ????????????????????# # ## ##?? | | ???????????????????## #?? | | ??????????????????### ## #?? | | ?????????????????## #### #?? | | ???????????????### @ #??# ##?? | | ???????????# # r #??## ###??? | | ???????????# a ##???### #????? | | ???????? a% % a #??????# #????? | | ????????? % %% # # #??????# #????? | | ????????? ? % a #????# ###### | | ?????????? = #???# | | ??????????? "#### """ #???# ###### | | ??????????? ##????## """ #???# #????# | | ??????????? ????????#dd# """ #??# #???## | | ????????????????????# ## ? #???# | | ????????????????????#% ?## ? #?###???# | | ????????????????????# ??# ??? ?????????# | | ????????????????????# %??# u #?????????????## | | ????????????????????#%$??# #??????????????# | | ???????????????????? " ?? #??????????????# | | ????????????????????? ??? ?????????????##### | | ?????????????????????????? ##???????????????# | | ????????????????????????????????????????????# | | ????????????????????????????????????????????# | | ???????????????????????????????????????????# | | ???????????????????????????????????????????# # | | ???????????????????????????????????????????## #? | | ????????????????????????????????????????????# ?? | | ????????????????????????????????????????????# # | +----------------------------------------------------+ Best States ------------- Heat Dissipation 35 Energy Generation 10 Energy Capacity 250 Matter Stores 300 Matter Capacity 300 Sight Range 16 Terrain Scan Density 10 Evasion (%) 40 Recoil Reduction 2 Item Schematics ----------------- None Robot Schematics ------------------ None Fabricated ------------ Nothing Repaired ---------- Nothing Studied --------- None Alien Tech Used ----------------- None Achievements -------------- None Challenges ------------ None Game ------ Seed SystemLobotomyReconfigurator Manual? 0 Play Time 00:14:02 Cumulative 427.8 hours Start 2026.07.12 @ 10:54:43 End 2026.07.12 @ 11:07:02 Sessions 1 Manual Loads 0 Difficulty Rogue Special Mode None Game No. 264 Rogue 264 Adventurer 0 Explorer 0 Win Type - Total 12 Types 11/0/1/0/0/0/0/0/0/0 Lore% 80 Gallery% 72 Achievement% 54 Wizard Run 0 Options --------- Layout 1 ASCII 0 Keyboard 1 Movement Numpad Keybinds 0 Fullscreen 2 Font 24/Smallcaps Map View 50x35 Zoom Use 0% Tactical HUD 1 Map Filters NONE Filters NONE Steam 1 RUN: 0c64a7e2-83cd-4a62-a767-b6979a34102f